[Event "Titled Tuesday Blitz November 01 Late 2022"]
[White "Gallegos Diaz, Carlos Alberto"]
[Black "Janaszak, Dawid"]
[WhiteFideId "3900886"]
[BlackFideId "1119206"]
[WhiteElo "2362"]
[BlackElo "2226"]
[Result "0-1"]
[Round "07"]
[TimeControl "180+1"]
[Date "2022.11.02"]
[WhiteClock "0:00:05"]
[BlackClock "0:00:14"]

1. e4 {[%clk 0:03:00]}  e5 {[%clk 0:02:55]} 2. Nf3 {[%clk 0:03:00]}  Nc6 {[%clk 0:02:56]} 3. Bb5 {[%clk 0:02:59]}  g6 {[%clk 0:02:55]} 4. O-O {[%clk 0:02:58]}  Bg7 {[%clk 0:02:54]} 5. c3 {[%clk 0:02:56]}  d6 {[%clk 0:02:52]} 6. d4 {[%clk 0:02:56]}  Bd7 {[%clk 0:02:53]} 7. Bg5 {[%clk 0:02:43]}  f6 {[%clk 0:02:51]} 8. Be3 {[%clk 0:02:42]}  Nh6 {[%clk 0:02:48]} 9. h3 {[%clk 0:02:26]}  O-O {[%clk 0:02:45]} 10. Nbd2 {[%clk 0:01:58]}  Nf7 {[%clk 0:02:42]} 11. Re1 {[%clk 0:01:56]}  Qe7 {[%clk 0:02:42]} 12. a4 {[%clk 0:01:51]}  Ncd8 {[%clk 0:02:36]} 13. Qb3 {[%clk 0:01:40]}  Be6 {[%clk 0:02:33]} 14. Bc4 {[%clk 0:01:39]}  c6 {[%clk 0:02:24]} 15. a5 {[%clk 0:01:31]}  Rb8 {[%clk 0:02:24]} 16. dxe5 {[%clk 0:01:30]}  fxe5 {[%clk 0:02:00]} 17. Bxa7 {[%clk 0:01:28]}  Ra8 {[%clk 0:01:49]} 18. Bb6 {[%clk 0:01:24]}  Kh8 {[%clk 0:01:46]} 19. Rad1 {[%clk 0:01:23]}  Bh6 {[%clk 0:01:41]} 20. Qb4 {[%clk 0:00:58]}  Qf6 {[%clk 0:01:20]} 21. Bxd8 {[%clk 0:00:45]}  Rfxd8 {[%clk 0:01:14]} 22. Bxe6 {[%clk 0:00:45]}  Qxe6 {[%clk 0:01:15]} 23. Nc4 {[%clk 0:00:36]}  Rab8 {[%clk 0:01:03]} 24. Nb6 {[%clk 0:00:28]}  Bf8 {[%clk 0:00:57]} 25. Qc4 {[%clk 0:00:28]}  Qf6 {[%clk 0:00:58]} 26. Nh2 {[%clk 0:00:26]}  h5 {[%clk 0:00:57]} 27. Qe2 {[%clk 0:00:25]}  Be7 {[%clk 0:00:56]} 28. Qf3 {[%clk 0:00:24]}  Qe6 {[%clk 0:00:53]} 29. b4 {[%clk 0:00:23]}  Rf8 {[%clk 0:00:51]} 30. Qg3 {[%clk 0:00:20]}  Kg7 {[%clk 0:00:40]} 31. Nf3 {[%clk 0:00:18]}  Bf6 {[%clk 0:00:38]} 32. h4 {[%clk 0:00:18]}  Rbd8 {[%clk 0:00:35]} 33. Rd3 {[%clk 0:00:17]}  Qg4 {[%clk 0:00:31]} 34. Red1 {[%clk 0:00:16]}  Qxe4 {[%clk 0:00:30]} 35. Re3 {[%clk 0:00:15]}  Qf5 {[%clk 0:00:30]} 36. Rde1 {[%clk 0:00:14]}  d5 {[%clk 0:00:26]} 37. c4 {[%clk 0:00:14]}  d4 {[%clk 0:00:25]} 38. Re4 {[%clk 0:00:14]}  d3 {[%clk 0:00:17]} 39. R4e3 {[%clk 0:00:14]}  d2 {[%clk 0:00:15]} 40. Rd1 {[%clk 0:00:14]}  Qc2 {[%clk 0:00:15]} 41. Rf1 {[%clk 0:00:07]}  d1=Q {[%clk 0:00:15]} 42. Rxd1 {[%clk 0:00:07]}  Rxd1+ {[%clk 0:00:14]} 43. Kh2 {[%clk 0:00:08]}  Qc1 {[%clk 0:00:14]} 44. Qxg6+ {[%clk 0:00:05]}  Kxg6 {[%clk 0:00:14]} 0-1


[Site "https://www.chess.com"]

[Event "Titled Tuesday Blitz November 01 Late 2022"]
[White "Gardezi, Arsal"]
[Black "Dzierzak, Radoslaw"]
[WhiteFideId "30949521"]
[BlackFideId "1161407"]
[WhiteElo "1906"]
[BlackElo "2111"]
[Result "0-1"]
[Round "07"]
[TimeControl "180+1"]
[Date "2022.11.02"]
[WhiteClock "0:00:03"]
[BlackClock "0:00:06"]

1. e4 {[%clk 0:02:59]}  c5 {[%clk 0:02:59]} 2. Nf3 {[%clk 0:02:59]}  Nc6 {[%clk 0:03:00]} 3. d4 {[%clk 0:02:59]}  cxd4 {[%clk 0:03:00]} 4. Nxd4 {[%clk 0:03:00]}  e6 {[%clk 0:03:00]} 5. Nc3 {[%clk 0:03:00]}  Qc7 {[%clk 0:03:01]} 6. Be3 {[%clk 0:02:57]}  a6 {[%clk 0:03:01]} 7. g4 {[%clk 0:02:52]}  b5 {[%clk 0:02:49]} 8. Bg2 {[%clk 0:02:49]}  Bb7 {[%clk 0:02:49]} 9. Qd2 {[%clk 0:02:48]}  Ne5 {[%clk 0:02:46]} 10. Qe2 {[%clk 0:02:45]}  Nc4 {[%clk 0:02:44]} 11. Bc1 {[%clk 0:02:34]}  Bb4 {[%clk 0:02:39]} 12. O-O {[%clk 0:02:33]}  Ne7 {[%clk 0:02:35]} 13. a4 {[%clk 0:02:27]}  Bc5 {[%clk 0:02:27]} 14. Nb3 {[%clk 0:02:23]}  b4 {[%clk 0:02:24]} 15. Qxc4 {[%clk 0:02:22]}  Bxf2+ {[%clk 0:02:23]} 16. Rxf2 {[%clk 0:01:49]}  Qxc4 {[%clk 0:02:23]} 17. Nd1 {[%clk 0:01:47]}  O-O {[%clk 0:02:15]} 18. Na5 {[%clk 0:01:46]}  Qc7 {[%clk 0:02:02]} 19. Nxb7 {[%clk 0:01:46]}  Qxb7 {[%clk 0:02:02]} 20. Ne3 {[%clk 0:01:45]}  Rac8 {[%clk 0:01:59]} 21. b3 {[%clk 0:01:45]}  Qa7 {[%clk 0:01:48]} 22. Nc4 {[%clk 0:01:41]}  d5 {[%clk 0:01:48]} 23. Be3 {[%clk 0:01:41]}  Qb8 {[%clk 0:01:44]} 24. Nb6 {[%clk 0:01:40]}  Rcd8 {[%clk 0:01:40]} 25. Bc5 {[%clk 0:01:34]}  Rfe8 {[%clk 0:01:30]} 26. a5 {[%clk 0:01:34]}  dxe4 {[%clk 0:01:24]} 27. Bxe4 {[%clk 0:01:29]}  Nd5 {[%clk 0:01:24]} 28. Raf1 {[%clk 0:01:12]}  f6 {[%clk 0:01:24]} 29. Bd3 {[%clk 0:00:57]}  Qb7 {[%clk 0:01:00]} 30. Be4 {[%clk 0:00:51]}  Qc7 {[%clk 0:00:59]} 31. Bd4 {[%clk 0:00:40]}  Nc3 {[%clk 0:00:54]} 32. Bxc3 {[%clk 0:00:26]}  Qxc3 {[%clk 0:00:53]} 33. Bd3 {[%clk 0:00:27]}  Qc5 {[%clk 0:00:53]} 34. Nc4 {[%clk 0:00:22]}  e5 {[%clk 0:00:49]} 35. Re1 {[%clk 0:00:18]}  e4 {[%clk 0:00:44]} 36. Bxe4 {[%clk 0:00:18]}  Kf8 {[%clk 0:00:32]} 37. Kf1 {[%clk 0:00:14]}  Rd4 {[%clk 0:00:20]} 38. Rfe2 {[%clk 0:00:12]}  Qc7 {[%clk 0:00:19]} 39. Kg2 {[%clk 0:00:10]}  Qf4 {[%clk 0:00:18]} 40. Bf3 {[%clk 0:00:09]}  Rxe2+ {[%clk 0:00:18]} 41. Rxe2 {[%clk 0:00:10]}  Rxc4 {[%clk 0:00:09]} 42. bxc4 {[%clk 0:00:09]}  Qxc4 {[%clk 0:00:09]} 43. Be4 {[%clk 0:00:08]}  g6 {[%clk 0:00:08]} 44. Kf3 {[%clk 0:00:07]}  Qc5 {[%clk 0:00:06]} 45. Bd3 {[%clk 0:00:04]}  Qxa5 {[%clk 0:00:06]} 46. Re6 {[%clk 0:00:04]}  Qd5+ {[%clk 0:00:06]} 47. Re4 {[%clk 0:00:05]}  a5 {[%clk 0:00:05]} 48. Kg3 {[%clk 0:00:04]}  Qd6+ {[%clk 0:00:06]} 49. Kg2 {[%clk 0:00:04]}  Qc6 {[%clk 0:00:06]} 50. Kf2 {[%clk 0:00:04]}  Qc5+ {[%clk 0:00:06]} 51. Kf1 {[%clk 0:00:04]}  a4 {[%clk 0:00:05]} 52. Rc4 {[%clk 0:00:04]}  Qd6 {[%clk 0:00:03]} 53. Rc8+ {[%clk 0:00:04]}  Kg7 {[%clk 0:00:03]} 54. Ra8 {[%clk 0:00:03]}  a3 {[%clk 0:00:03]} 55. Ra7+ {[%clk 0:00:02]}  Kh6 {[%clk 0:00:03]} 56. Ra6 {[%clk 0:00:01]}  Qf4+ {[%clk 0:00:04]} 57. Ke2 {[%clk 0:00:01]}  Qxg4+ {[%clk 0:00:04]} 58. Kd2 {[%clk 0:00:02]}  Qf4+ {[%clk 0:00:04]} 59. Ke2 {[%clk 0:00:02]}  Qxh2+ {[%clk 0:00:05]} 60. Ke3 {[%clk 0:00:02]}  Qe5+ {[%clk 0:00:05]} 61. Kd2 {[%clk 0:00:03]}  Qc3+ {[%clk 0:00:05]} 62. Ke2 {[%clk 0:00:03]}  Qe5+ {[%clk 0:00:05]} 63. Kd1 {[%clk 0:00:03]}  f5 {[%clk 0:00:05]} 64. Ra7 {[%clk 0:00:02]}  f4 {[%clk 0:00:05]} 65. Bc4 {[%clk 0:00:03]}  f3 {[%clk 0:00:05]} 66. Bg8 {[%clk 0:00:03]}  f2 {[%clk 0:00:05]} 67. Rxh7+ {[%clk 0:00:02]}  Kg5 {[%clk 0:00:06]} 68. Rh1 {[%clk 0:00:02]}  Qe4 {[%clk 0:00:04]} 69. Rf1 {[%clk 0:00:01]}  Qd4+ {[%clk 0:00:04]} 70. Kc1 {[%clk 0:00:01]}  Qa1+ {[%clk 0:00:03]} 71. Kd2 {[%clk 0:00:02]}  Qxf1 {[%clk 0:00:04]} 72. Bc4 {[%clk 0:00:02]}  Qe1+ {[%clk 0:00:05]} 73. Kd3 {[%clk 0:00:02]}  f1=Q+ {[%clk 0:00:05]} 74. Kd4 {[%clk 0:00:03]}  Qff2+ {[%clk 0:00:06]} 75. Kd5 {[%clk 0:00:03]}  Qed2+ {[%clk 0:00:06]} 76. Kc6 {[%clk 0:00:04]}  Qf6+ {[%clk 0:00:06]} 77. Kb5 {[%clk 0:00:05]}  Qe3 {[%clk 0:00:05]} 78. Ka4 {[%clk 0:00:05]}  Qeb6 {[%clk 0:00:04]} 79. c3 {[%clk 0:00:05]}  a2 {[%clk 0:00:05]} 80. Bxa2 {[%clk 0:00:05]}  Qxc3 {[%clk 0:00:05]} 81. Bc4 {[%clk 0:00:03]}  Qa3# {[%clk 0:00:06]} 0-1


[Site "https://www.chess.com"]

[Event "Titled Tuesday Blitz November 01 Late 2022"]
[White "Gokerkan, Cem Kaan"]
[Black "Bayo Milagro, Alvaro"]
[WhiteFideId "6336760"]
[BlackFideId "22275240"]
[WhiteElo "2365"]
[BlackElo "2270"]
[Result "1-0"]
[Round "07"]
[TimeControl "180+1"]
[Date "2022.11.01"]
[WhiteClock "0:00:28"]
[BlackClock "0:00:07"]

1. e4 {[%clk 0:03:00]}  c6 {[%clk 0:02:57]} 2. d4 {[%clk 0:02:55]}  d5 {[%clk 0:02:57]} 3. Nc3 {[%clk 0:02:56]}  dxe4 {[%clk 0:02:58]} 4. Nxe4 {[%clk 0:02:57]}  Bf5 {[%clk 0:02:58]} 5. Ng3 {[%clk 0:02:57]}  Bg6 {[%clk 0:02:58]} 6. h4 {[%clk 0:02:57]}  h6 {[%clk 0:02:59]} 7. Nf3 {[%clk 0:02:52]}  Nf6 {[%clk 0:02:58]} 8. Bd3 {[%clk 0:02:52]}  Bxd3 {[%clk 0:02:57]} 9. Qxd3 {[%clk 0:02:53]}  e6 {[%clk 0:02:58]} 10. Bf4 {[%clk 0:02:52]}  Qa5+ {[%clk 0:02:52]} 11. Bd2 {[%clk 0:02:51]}  Bb4 {[%clk 0:02:52]} 12. c3 {[%clk 0:02:51]}  Be7 {[%clk 0:02:52]} 13. O-O {[%clk 0:02:34]}  O-O {[%clk 0:02:49]} 14. Rfe1 {[%clk 0:02:34]}  Nbd7 {[%clk 0:02:48]} 15. a3 {[%clk 0:02:32]}  Qc7 {[%clk 0:02:43]} 16. Nf5 {[%clk 0:02:20]}  exf5 {[%clk 0:02:35]} 17. Rxe7 {[%clk 0:02:18]}  Qd6 {[%clk 0:02:35]} 18. Re2 {[%clk 0:02:12]}  Ne4 {[%clk 0:02:33]} 19. Rae1 {[%clk 0:02:09]}  Rfe8 {[%clk 0:02:28]} 20. c4 {[%clk 0:02:02]}  Ndf6 {[%clk 0:02:26]} 21. Bb4 {[%clk 0:01:55]}  Qd7 {[%clk 0:02:20]} 22. Qe3 {[%clk 0:01:49]}  a5 {[%clk 0:02:03]} 23. Ne5 {[%clk 0:01:41]}  Qd8 {[%clk 0:01:56]} 24. Bc3 {[%clk 0:01:40]}  Nxc3 {[%clk 0:01:25]} 25. bxc3 {[%clk 0:01:39]}  Qd6 {[%clk 0:01:18]} 26. Qf4 {[%clk 0:01:28]}  Qxa3 {[%clk 0:01:15]} 27. Re3 {[%clk 0:01:21]}  Qd6 {[%clk 0:00:55]} 28. Qxf5 {[%clk 0:01:20]}  a4 {[%clk 0:00:50]} 29. c5 {[%clk 0:00:54]}  Qd5 {[%clk 0:00:46]} 30. Rg3 {[%clk 0:00:51]}  Kf8 {[%clk 0:00:34]} 31. Ree3 {[%clk 0:00:27]}  a3 {[%clk 0:00:28]} 32. Rxg7 {[%clk 0:00:27]}  Kxg7 {[%clk 0:00:16]} 33. Rg3+ {[%clk 0:00:27]}  Kf8 {[%clk 0:00:17]} 34. Qxf6 {[%clk 0:00:28]}  Qe6 {[%clk 0:00:09]} 35. Ng6+ {[%clk 0:00:28]}  Kg8 {[%clk 0:00:07]} 36. Qh8# {[%clk 0:00:28]} 1-0


[Site "https://www.chess.com"]

[Event "Titled Tuesday Blitz November 01 Late 2022"]
[White "Goltsev, Dmitry"]
[Black "Muradli, Mahammad"]
[WhiteFideId "24176710"]
[BlackFideId "13409301"]
[WhiteElo "2257"]
[BlackElo "2611"]
[Result "0-1"]
[Round "07"]
[TimeControl "180+1"]
[Date "2022.11.01"]
[WhiteClock "0:00:04"]
[BlackClock "0:00:14"]

1. e4 {[%clk 0:02:59]}  c5 {[%clk 0:02:58]} 2. Nf3 {[%clk 0:02:58]}  d6 {[%clk 0:02:59]} 3. d4 {[%clk 0:02:58]}  cxd4 {[%clk 0:03:00]} 4. Nxd4 {[%clk 0:02:59]}  Nf6 {[%clk 0:03:00]} 5. Nc3 {[%clk 0:02:59]}  a6 {[%clk 0:03:01]} 6. Be2 {[%clk 0:02:58]}  e5 {[%clk 0:03:01]} 7. Nb3 {[%clk 0:02:57]}  Be7 {[%clk 0:03:01]} 8. Be3 {[%clk 0:02:58]}  Be6 {[%clk 0:03:01]} 9. Nd5 {[%clk 0:02:58]}  Nbd7 {[%clk 0:03:01]} 10. f3 {[%clk 0:02:56]}  Bxd5 {[%clk 0:02:58]} 11. exd5 {[%clk 0:02:57]}  Rc8 {[%clk 0:02:55]} 12. c4 {[%clk 0:02:53]}  b6 {[%clk 0:02:54]} 13. O-O {[%clk 0:02:48]}  O-O {[%clk 0:02:52]} 14. Qd2 {[%clk 0:02:46]}  a5 {[%clk 0:02:49]} 15. Nc1 {[%clk 0:02:44]}  Ne8 {[%clk 0:02:49]} 16. b3 {[%clk 0:02:42]}  g6 {[%clk 0:02:49]} 17. Nd3 {[%clk 0:02:41]}  Ng7 {[%clk 0:02:49]} 18. Rac1 {[%clk 0:02:41]}  Nf5 {[%clk 0:02:48]} 19. Bf2 {[%clk 0:02:40]}  Bg5 {[%clk 0:02:47]} 20. f4 {[%clk 0:02:41]}  exf4 {[%clk 0:02:43]} 21. Nxf4 {[%clk 0:02:41]}  Nf6 {[%clk 0:02:36]} 22. Bd3 {[%clk 0:02:35]}  Ng7 {[%clk 0:02:20]} 23. g3 {[%clk 0:02:08]}  Ngh5 {[%clk 0:02:11]} 24. Bd4 {[%clk 0:02:02]}  Re8 {[%clk 0:01:52]} 25. Nxh5 {[%clk 0:01:37]}  Nxh5 {[%clk 0:01:42]} 26. Qf2 {[%clk 0:01:35]}  Qd7 {[%clk 0:01:29]} 27. Rce1 {[%clk 0:01:33]}  Rxe1 {[%clk 0:01:23]} 28. Rxe1 {[%clk 0:01:34]}  a4 {[%clk 0:01:16]} 29. Bxb6 {[%clk 0:01:31]}  axb3 {[%clk 0:01:16]} 30. axb3 {[%clk 0:01:32]}  Nf6 {[%clk 0:01:12]} 31. h4 {[%clk 0:01:20]}  Ng4 {[%clk 0:01:11]} 32. Qe2 {[%clk 0:01:19]}  Bf6 {[%clk 0:01:08]} 33. Kg2 {[%clk 0:01:09]}  Be5 {[%clk 0:01:07]} 34. b4 {[%clk 0:01:03]}  h5 {[%clk 0:00:57]} 35. Be4 {[%clk 0:00:56]}  Qa4 {[%clk 0:00:57]} 36. Bf3 {[%clk 0:00:22]}  Qxb4 {[%clk 0:00:57]} 37. Bxg4 {[%clk 0:00:19]}  hxg4 {[%clk 0:00:58]} 38. Qxg4 {[%clk 0:00:20]}  Rxc4 {[%clk 0:00:58]} 39. Qe2 {[%clk 0:00:18]}  Rc3 {[%clk 0:00:47]} 40. Bf2 {[%clk 0:00:18]}  Qb3 {[%clk 0:00:47]} 41. h5 {[%clk 0:00:14]}  Qxd5+ {[%clk 0:00:46]} 42. Qe4 {[%clk 0:00:05]}  Qd2 {[%clk 0:00:36]} 43. hxg6 {[%clk 0:00:05]}  Rxg3+ {[%clk 0:00:36]} 44. Kf1 {[%clk 0:00:04]}  Rxg6 {[%clk 0:00:36]} 45. Qf5 {[%clk 0:00:03]}  Qd5 {[%clk 0:00:33]} 46. Rb1 {[%clk 0:00:03]}  Kg7 {[%clk 0:00:30]} 47. Ke2 {[%clk 0:00:03]}  Rg2 {[%clk 0:00:25]} 48. Rg1 {[%clk 0:00:03]}  Rxg1 {[%clk 0:00:20]} 49. Bxg1 {[%clk 0:00:04]}  Qg2+ {[%clk 0:00:19]} 50. Qf2 {[%clk 0:00:02]}  Qg4+ {[%clk 0:00:18]} 51. Kf1 {[%clk 0:00:02]}  f5 {[%clk 0:00:18]} 52. Qa7+ {[%clk 0:00:01]}  Kg6 {[%clk 0:00:18]} 53. Bf2 {[%clk 0:00:02]}  Qc4+ {[%clk 0:00:17]} 54. Kg2 {[%clk 0:00:01]}  f4 {[%clk 0:00:16]} 55. Qd7 {[%clk 0:00:01]}  Qe4+ {[%clk 0:00:16]} 56. Kf1 {[%clk 0:00:02]}  Qd3+ {[%clk 0:00:11]} 57. Kg2 {[%clk 0:00:03]}  f3+ {[%clk 0:00:11]} 58. Kh3 {[%clk 0:00:01]}  Qf5+ {[%clk 0:00:12]} 59. Qxf5+ {[%clk 0:00:01]}  Kxf5 {[%clk 0:00:12]} 60. Kh4 {[%clk 0:00:02]}  Ke4 {[%clk 0:00:12]} 61. Kg4 {[%clk 0:00:02]}  d5 {[%clk 0:00:13]} 62. Be1 {[%clk 0:00:01]}  d4 {[%clk 0:00:12]} 63. Bg3 {[%clk 0:00:02]}  Bxg3 {[%clk 0:00:12]} 64. Kxg3 {[%clk 0:00:03]}  Ke3 {[%clk 0:00:13]} 65. Kh2 {[%clk 0:00:03]}  f2 {[%clk 0:00:14]} 66. Kg2 {[%clk 0:00:04]}  Ke2 {[%clk 0:00:14]} 67. Kh2 {[%clk 0:00:04]}  f1=N+ {[%clk 0:00:14]} 0-1


[Site "https://www.chess.com"]

[Event "Titled Tuesday Blitz November 01 Late 2022"]
[White "Harvey, Marcus R"]
[Black "Kanyamarala, Trisha"]
[WhiteFideId "400092"]
[BlackFideId "45004722"]
[WhiteElo "2457"]
[BlackElo "2099"]
[Result "1-0"]
[Round "07"]
[TimeControl "180+1"]
[Date "2022.11.02"]
[WhiteClock "0:00:06"]
[BlackClock "0:00:02"]

1. f4 {[%clk 0:02:38]}  d5 {[%clk 0:02:55]} 2. Nf3 {[%clk 0:02:24]}  c6 {[%clk 0:02:54]} 3. g3 {[%clk 0:02:23]}  g6 {[%clk 0:02:53]} 4. Bg2 {[%clk 0:02:23]}  Qb6 {[%clk 0:02:52]} 5. Nc3 {[%clk 0:02:22]}  Bg7 {[%clk 0:02:50]} 6. a4 {[%clk 0:02:22]}  a5 {[%clk 0:02:49]} 7. e3 {[%clk 0:02:22]}  Nd7 {[%clk 0:02:48]} 8. O-O {[%clk 0:02:22]}  Ngf6 {[%clk 0:02:45]} 9. Kh1 {[%clk 0:02:21]}  O-O {[%clk 0:02:31]} 10. b3 {[%clk 0:02:08]}  Ne4 {[%clk 0:02:21]} 11. Qe1 {[%clk 0:01:44]}  Nxc3 {[%clk 0:02:16]} 12. dxc3 {[%clk 0:01:45]}  e5 {[%clk 0:02:11]} 13. Bd2 {[%clk 0:01:41]}  Re8 {[%clk 0:02:01]} 14. f5 {[%clk 0:01:41]}  Nf6 {[%clk 0:02:01]} 15. fxg6 {[%clk 0:01:38]}  fxg6 {[%clk 0:02:00]} 16. Ng5 {[%clk 0:01:30]}  e4 {[%clk 0:01:44]} 17. Bh3 {[%clk 0:01:20]}  h6 {[%clk 0:01:32]} 18. Bxc8 {[%clk 0:01:19]}  Raxc8 {[%clk 0:01:30]} 19. Nh3 {[%clk 0:01:19]}  Ng4 {[%clk 0:01:21]} 20. Nf4 {[%clk 0:01:19]}  Ne5 {[%clk 0:01:17]} 21. Qe2 {[%clk 0:01:16]}  Kh7 {[%clk 0:01:09]} 22. Rab1 {[%clk 0:01:04]}  Nf3 {[%clk 0:00:54]} 23. c4 {[%clk 0:01:02]}  d4 {[%clk 0:00:44]} 24. exd4 {[%clk 0:00:56]}  Qxd4 {[%clk 0:00:43]} 25. Be3 {[%clk 0:00:55]}  Qe5 {[%clk 0:00:41]} 26. Rbd1 {[%clk 0:00:52]}  Qf5 {[%clk 0:00:40]} 27. Bb6 {[%clk 0:00:43]}  Be5 {[%clk 0:00:29]} 28. Ng2 {[%clk 0:00:22]}  Bxg3 {[%clk 0:00:24]} 29. Ne3 {[%clk 0:00:21]}  Qh3 {[%clk 0:00:19]} 30. Qg2 {[%clk 0:00:21]}  Qxg2+ {[%clk 0:00:15]} 31. Kxg2 {[%clk 0:00:22]}  Bf4 {[%clk 0:00:09]} 32. Rd7+ {[%clk 0:00:22]}  Kh8 {[%clk 0:00:09]} 33. Ng4 {[%clk 0:00:20]}  Bg5 {[%clk 0:00:08]} 34. h4 {[%clk 0:00:13]}  Nxh4+ {[%clk 0:00:03]} 35. Kh3 {[%clk 0:00:13]}  Nf3 {[%clk 0:00:03]} 36. Bxa5 {[%clk 0:00:14]}  h5 {[%clk 0:00:04]} 37. Bc3+ {[%clk 0:00:14]}  Kg8 {[%clk 0:00:02]} 38. Rg7+ {[%clk 0:00:06]}  Kf8 {[%clk 0:00:02]} 39. Nh2 {[%clk 0:00:06]} 1-0


[Site "https://www.chess.com"]

[Event "Titled Tuesday Blitz November 01 Late 2022"]
[White "Heinemann, Josefine"]
[Black "Ashiku, Franc"]
[WhiteFideId "12900460"]
[BlackFideId "4700066"]
[WhiteElo "2300"]
[BlackElo "2306"]
[Result "1/2-1/2"]
[Round "07"]
[TimeControl "180+1"]
[Date "2022.11.02"]
[WhiteClock "0:01:19"]
[BlackClock "0:00:09"]

1. e4 {[%clk 0:03:00]}  a6 {[%clk 0:02:59]} 2. d4 {[%clk 0:02:59]}  d5 {[%clk 0:02:59]} 3. exd5 {[%clk 0:02:57]}  Qxd5 {[%clk 0:02:58]} 4. c4 {[%clk 0:02:57]}  Qd6 {[%clk 0:02:57]} 5. Nc3 {[%clk 0:02:54]}  Nf6 {[%clk 0:02:57]} 6. Nf3 {[%clk 0:02:52]}  g6 {[%clk 0:02:57]} 7. Be2 {[%clk 0:02:51]}  Bg7 {[%clk 0:02:57]} 8. O-O {[%clk 0:02:49]}  O-O {[%clk 0:02:58]} 9. h3 {[%clk 0:02:46]}  Nc6 {[%clk 0:02:53]} 10. Be3 {[%clk 0:02:46]}  Nh5 {[%clk 0:02:30]} 11. Qd2 {[%clk 0:02:41]}  e5 {[%clk 0:02:22]} 12. d5 {[%clk 0:02:36]}  Ne7 {[%clk 0:02:14]} 13. Ne4 {[%clk 0:02:30]}  Qd8 {[%clk 0:02:10]} 14. Rfd1 {[%clk 0:02:22]}  f5 {[%clk 0:01:38]} 15. Neg5 {[%clk 0:02:21]}  f4 {[%clk 0:01:32]} 16. Bc5 {[%clk 0:02:20]}  Qe8 {[%clk 0:01:32]} 17. Ne6 {[%clk 0:02:19]}  Bxe6 {[%clk 0:01:27]} 18. dxe6 {[%clk 0:02:20]}  e4 {[%clk 0:01:26]} 19. Ng5 {[%clk 0:02:18]}  f3 {[%clk 0:01:24]} 20. Bf1 {[%clk 0:02:17]}  Rf5 {[%clk 0:01:13]} 21. Nxe4 {[%clk 0:02:08]}  fxg2 {[%clk 0:00:59]} 22. Bxg2 {[%clk 0:02:03]}  Nf4 {[%clk 0:01:00]} 23. Qd7 {[%clk 0:02:01]}  Nc6 {[%clk 0:00:38]} 24. Qxc7 {[%clk 0:01:55]}  Nxg2 {[%clk 0:00:34]} 25. Kxg2 {[%clk 0:01:55]}  Qxe6 {[%clk 0:00:33]} 26. Re1 {[%clk 0:01:50]}  Raf8 {[%clk 0:00:30]} 27. Rad1 {[%clk 0:01:45]}  Rxc5 {[%clk 0:00:22]} 28. Nxc5 {[%clk 0:01:41]}  Qf5 {[%clk 0:00:23]} 29. Ne4 {[%clk 0:01:38]}  Ne5 {[%clk 0:00:20]} 30. Rd8 {[%clk 0:01:32]}  Qf3+ {[%clk 0:00:20]} 31. Kg1 {[%clk 0:01:31]}  Nd3 {[%clk 0:00:12]} 32. Rxf8+ {[%clk 0:01:30]}  Bxf8 {[%clk 0:00:13]} 33. Re3 {[%clk 0:01:28]}  Qd1+ {[%clk 0:00:11]} 34. Kg2 {[%clk 0:01:28]}  Ne1+ {[%clk 0:00:10]} 35. Rxe1 {[%clk 0:01:28]}  Qxe1 {[%clk 0:00:11]} 36. Qe5 {[%clk 0:01:28]}  Qc1 {[%clk 0:00:09]} 37. Qe6+ {[%clk 0:01:26]}  Kg7 {[%clk 0:00:09]} 38. Qf6+ {[%clk 0:01:26]}  Kg8 {[%clk 0:00:10]} 39. Ng5 {[%clk 0:01:25]}  Qxc4 {[%clk 0:00:09]} 40. Ne6 {[%clk 0:01:22]}  Qd5+ {[%clk 0:00:08]} 41. Kg1 {[%clk 0:01:21]}  Qd1+ {[%clk 0:00:08]} 42. Kg2 {[%clk 0:01:21]}  Qd5+ {[%clk 0:00:08]} 43. Kg1 {[%clk 0:01:19]}  Qd1+ {[%clk 0:00:09]} 44. Kg2 {[%clk 0:01:19]}  Qd5+ {[%clk 0:00:09]} 1/2-1/2


[Site "https://www.chess.com"]

[Event "Titled Tuesday Blitz November 01 Late 2022"]
[White "Hemam, Moulaye Brahim"]
[Black "Sanchez, Robert"]
[WhiteFideId "19600054"]
[BlackFideId "2034360"]
[WhiteElo "2088"]
[BlackElo "2397"]
[Result "0-1"]
[Round "07"]
[TimeControl "180+1"]
[Date "2022.11.02"]
[WhiteClock "0:00:06"]
[BlackClock "0:00:19"]

1. e4 {[%clk 0:02:59]}  e6 {[%clk 0:02:58]} 2. d4 {[%clk 0:02:59]}  d5 {[%clk 0:02:58]} 3. Nc3 {[%clk 0:03:00]}  Nf6 {[%clk 0:02:58]} 4. e5 {[%clk 0:03:00]}  Nfd7 {[%clk 0:02:58]} 5. f4 {[%clk 0:03:01]}  c5 {[%clk 0:02:58]} 6. Nf3 {[%clk 0:03:01]}  Nc6 {[%clk 0:02:58]} 7. Be3 {[%clk 0:02:58]}  Be7 {[%clk 0:02:59]} 8. Qd2 {[%clk 0:02:58]}  O-O {[%clk 0:02:59]} 9. Be2 {[%clk 0:02:57]}  cxd4 {[%clk 0:02:58]} 10. Nxd4 {[%clk 0:02:56]}  Nxd4 {[%clk 0:02:58]} 11. Bxd4 {[%clk 0:02:56]}  f6 {[%clk 0:02:58]} 12. exf6 {[%clk 0:02:42]}  Nxf6 {[%clk 0:02:55]} 13. O-O {[%clk 0:02:35]}  a6 {[%clk 0:02:55]} 14. Bf3 {[%clk 0:02:18]}  Bd7 {[%clk 0:02:51]} 15. f5 {[%clk 0:02:14]}  exf5 {[%clk 0:02:38]} 16. Nxd5 {[%clk 0:02:11]}  Nxd5 {[%clk 0:02:37]} 17. Bxd5+ {[%clk 0:02:11]}  Kh8 {[%clk 0:02:37]} 18. Bxb7 {[%clk 0:02:10]}  Bb5 {[%clk 0:02:10]} 19. Bxa8 {[%clk 0:02:02]}  Bxf1 {[%clk 0:01:58]} 20. Rxf1 {[%clk 0:02:01]}  Qxa8 {[%clk 0:01:56]} 21. Qh6 {[%clk 0:01:44]}  Bf6 {[%clk 0:01:49]} 22. Bxf6 {[%clk 0:01:43]}  Qa7+ {[%clk 0:01:38]} 23. Kh1 {[%clk 0:01:30]}  Rxf6 {[%clk 0:01:37]} 24. Qd2 {[%clk 0:01:23]}  h6 {[%clk 0:01:29]} 25. c4 {[%clk 0:01:07]}  Qc5 {[%clk 0:01:24]} 26. Qc3 {[%clk 0:01:02]}  f4 {[%clk 0:01:21]} 27. b4 {[%clk 0:00:59]}  Qe7 {[%clk 0:01:04]} 28. a4 {[%clk 0:00:51]}  Qe2 {[%clk 0:00:55]} 29. Re1 {[%clk 0:00:38]}  f3 {[%clk 0:00:38]} 30. gxf3 {[%clk 0:00:29]}  Qf2 {[%clk 0:00:31]} 31. Re8+ {[%clk 0:00:27]}  Kh7 {[%clk 0:00:31]} 32. Qd3+ {[%clk 0:00:27]}  Rg6 {[%clk 0:00:29]} 33. Rh8+ {[%clk 0:00:13]}  Kxh8 {[%clk 0:00:27]} 34. Qxg6 {[%clk 0:00:14]}  Qf1+ {[%clk 0:00:26]} 35. Qg1 {[%clk 0:00:14]}  Qxf3+ {[%clk 0:00:27]} 36. Qg2 {[%clk 0:00:15]}  Qd1+ {[%clk 0:00:25]} 37. Qg1 {[%clk 0:00:15]}  Qf3+ {[%clk 0:00:22]} 38. Qg2 {[%clk 0:00:15]}  Qd1+ {[%clk 0:00:20]} 39. Qg1 {[%clk 0:00:16]}  Qxa4 {[%clk 0:00:20]} 40. Qc1 {[%clk 0:00:15]}  Qxb4 {[%clk 0:00:19]} 41. c5 {[%clk 0:00:16]}  Qe4+ {[%clk 0:00:19]} 42. Kg1 {[%clk 0:00:06]}  Qc6 {[%clk 0:00:19]} 0-1


[Site "https://www.chess.com"]